[Event "Susha Chess Blitz 2022"]
[Site "Shusha"]
[Date "2022.09.24"]
[Round "5"]
[White "Guseinov, Gadir"]
[Black "Mamedov, Rauf"]
[Result "1/2-1/2"]
[ECO "B34"]
[WhiteElo "2661"]
[BlackElo "2646"]
[Annotator "TA"]
[PlyCount "42"]
[EventDate "2022.09.24"]
[EventType "tourn"]
[EventCountry "AZE"]
[SourceTitle "playchess.com"]
[Source "ChessBase"]
[SourceQuality "1"]
[TimeControl "180+2"]

{[%evp 25,42,0,0,0,23,-29,-18,-18,-2,-29,38,53,35,7,0,0,0,1,8]} 1. e4 {[%emt 0:00:01]} c5 {[%emt 0:00:02]} 2. Nf3 {[%emt 0:00:01]} Nc6 {[%emt 0:00:03]} 3. Nc3 {[%emt 0:00:06]} g6 {[%emt 0:00:06]} 4. d4 {[%emt 0:00:02]} cxd4 {[%emt 0:00:02]} 5. Nxd4 {[%emt 0:00:01]} Bg7 {[%emt 0:00:01]} 6. Be3 {[%emt 0:00:00]} Nf6 {[%emt 0:00:02]} 7. Be2 {[%emt 0:00:02]} O-O {[%emt 0:00:03]} 8. O-O {[%emt 0:00:02]} d5 {[%emt 0:00:05]} 9. exd5 {[%emt 0:00:04]} Nxd5 {[%emt 0:00:01]} 10. Nxd5 {[%emt 0:00:02]} Qxd5 {[%emt 0:00:03]} 11. Bf3 {[%emt 0:00:02]} Qc4 {[%emt 0:00:01]} 12. Nxc6 {[%emt 0:00:20]} bxc6 {[%emt 0:00:02]} 13. c3 {[%emt 0:00:01]} Be6 {[%emt 0:00:06]} 14. Re1 {[%emt 0:00:10][%cal Bf1e1,Be1e2,Be2d2][%mdl 32] B34: Sicilian: Accelerated Dragon with 5 Nc3: sidelines.} Bd5 {[%emt 0:00:09] [#]} 15. Qe2 $146 {[%emt 0:00:14]} ({Better is} 15. Be2 Qe4 16. Bf1) ({Predecessor:} 15. Be2 Qe4 16. Bf1 Qf5 17. Qa4 Rfc8 18. Rad1 e5 19. Ba6 Rcb8 20. b4 Qg4 21. Bf1 a5 {1-0 (35) Balazs,A (1975)-Mervo,J (1991) Hungary 2012}) 15... Qxe2 $11 {[%emt 0:00:04]} 16. Rxe2 {[%emt 0:00:10]} e6 {[%emt 0:00:08]} 17. Rc1 {[%emt 0:00:10]} Bc4 {[%emt 0:00:15]} (17... Bxf3 $11 18. gxf3 Rfd8) 18. Rd2 $14 {[%emt 0:00:03]} Bd5 {[%emt 0:00:02]} 19. c4 {[%emt 0:00:10]} Bxf3 {[%emt 0:00:14] The position is equal.} 20. gxf3 {[%emt 0:00:01]} Rfb8 {[%emt 0:00:13]} 21. b3 {[%emt 0:00:02]} a5 $1 {[%emt 0:00:11] Weighted Error Value: White=0.21 (precise) /Black=0.19 (very precise)} 1/2-1/2

[Event "Susha Chess Blitz 2022"]
[Site "Shusha"]
[Date "2022.09.24"]
[Round "5"]
[White "Durarbayli, Vasif"]
[Black "Yilmaz, Mustafa"]
[Result "0-1"]
[ECO "B20"]
[WhiteElo "2628"]
[BlackElo "2633"]
[Annotator "TA"]
[PlyCount "58"]
[EventDate "2022.09.24"]
[EventType "tourn"]
[EventCountry "AZE"]
[SourceTitle "playchess.com"]
[Source "ChessBase"]
[SourceQuality "1"]
[TimeControl "180+2"]

{[%evp 9,58,18,22,19,17,14,42,5,12,-56,-50,-38,-43,-156,-156,-216,-120,-111,-101,-89,-62,-96,-66,-83,-99,-101,-86,-99,-65,-85,-47,-143,-104,-192,-191,-267,-189,-185,-142,-141,-105,-166,-128,-363,-360,-532,-255,-1292,-1300,-29987,-5739]} 1. e4 {[%emt 0:00:00]} c5 {[%emt 0:00:01]} 2. Ne2 {[%emt 0:00:01]} Nf6 {[%emt 0:00:03]} 3. Nbc3 {[%emt 0:00:02]} d6 {[%emt 0:00:04]} 4. h3 {[%emt 0:00:01]} e5 {[%emt 0:00:19]} 5. d3 {[%emt 0:00:01]} Nc6 {[%emt 0:00:01]} 6. g4 {[%emt 0:00:01] B23: Closed Sicilian: Lines without g3.} Be7 {[%emt 0:00:03]} 7. Bg2 {[%emt 0:00:24] [#]} Nd4 $146 {[%emt 0:00:04]} ({Predecessor:} 7... h5 8. g5 Nh7 9. h4 f6 10. Nd5 fxg5 11. hxg5 Nxg5 12. Nec3 g6 13. Nxe7 Qxe7 {0-1 (36) Andreikin,D (2724)-Vachier Lagrave,M (2780) Jerusalem 2019}) 8. Ng3 {[%emt 0:00:10] White is slightly better.} g6 {[%emt 0:00:23]} 9. f4 {[%emt 0:00:28]} (9. Bh6 $11) 9... h5 {[%emt 0:00:26][%cal Rh5g4]} 10. g5 {[%emt 0:00:01]} Nh7 {[%emt 0:00:07] Threatens to win with ...exf4.} 11. h4 {[%emt 0:01:01]} (11. Nd5 $15) 11... Bg4 $17 {[%emt 0:00:01]} 12. Nce2 {[%emt 0:00:00] [#]} (12. Nge2 $17) 12... f6 {[%emt 0:00:09]} ({Better is} 12... exf4 $1 $19 13. Bxf4 f6) 13. c3 {[%emt 0:00:10] Hoping for gxf6.} Nxe2 {[%emt 0:00:07] Black is much more active. The white rooks are badly placed.} 14. Nxe2 {[%emt 0:00:02][%cal Of4f5]} exf4 {[%emt 0:00:01]} 15. Qa4+ $1 {[%emt 0:00:26]} Bd7 {[%emt 0:00:16]} 16. Qb3 {[%emt 0:00:01]} fxg5 {[%emt 0:00:04]} 17. hxg5 {[%emt 0:00:01]} f3 $36 {[%emt 0:00:28][%mdl 2048] White is under strong pressure.} ({But not} 17... Bxg5 18. Nxf4 Qb6 19. Nxg6 Qxb3 20. axb3 $11) 18. Bxf3 {[%emt 0:00:02]} Nxg5 {[%emt 0:00:01]} 19. Bg2 {[%emt 0:00:16]} Ne6 {[%emt 0:00:33]} 20. O-O {[%emt 0:00:10]} (20. e5 $1 $15) 20... Qb6 {[%emt 0:00:01]} 21. Qc2 {[%emt 0:00:22]} (21. Nf4 $17 Nxf4 22. Bxf4) 21... O-O-O $19 {[%emt 0:00:03]} 22. a4 {[%emt 0:00:02]} (22. Qb3 $142) 22... c4+ {[%emt 0:00:09]} 23. d4 {[%emt 0:00:01]} Rdf8 {[%emt 0:00:05]} 24. Be3 {[%emt 0:00:03]} Qc7 {[%emt 0:00:03]} 25. d5 {[%emt 0:00:02]} (25. Rxf8+ $17 Rxf8 26. Rf1) 25... Bg5 {[%emt 0:00:05]} 26. Bxa7 {[%emt 0:00:02] [#] This move loses the game for White.} (26. Qd2 $17 Bxe3+ 27. Qxe3) 26... Nc5 {[%emt 0:00:01]} 27. a5 {[%emt 0:00:03]} (27. Bxc5 $142 dxc5 28. Kh1) 27... Bg4 {[%emt 0:00:07]} (27... Qd8 $142 {( -> ...Be3+)} 28. Bxc5 dxc5) 28. Bb6 $2 {[%emt 0:00:02]} (28. Kh2) 28... Be3+ {[%emt 0:00:01]} 29. Kh1 Qe7 {Weighted Error Value: White=0.82/Black=0.36} 0-1

[Event "Susha Chess Blitz 2022"]
[Site "Shusha"]
[Date "2022.09.24"]
[Round "6"]
[White "Wang, Hao"]
[Black "Mamedyarov, Shakhriyar"]
[Result "1/2-1/2"]
[ECO "C77"]
[WhiteElo "2722"]
[BlackElo "2757"]
[Annotator "TA"]
[PlyCount "114"]
[EventDate "2022.09.24"]
[EventType "tourn"]
[EventCountry "AZE"]
[SourceTitle "playchess.com"]
[Source "ChessBase"]
[SourceQuality "1"]
[TimeControl "180+2"]

{[%evp 12,114,13,3,4,2,16,0,15,0,0,0,-2,-8,-8,-10,-5,-25,-19,-33,-28,-7,-7,-31,-37,-29,-20,-25,-18,-37,-45,-60,-56,-55,0,0,0,-6,-2,-2,-2,-1,-3,-6,0,0,0,0,74,68,67,0,0,-556,-549,-537,-528,-484,-185,-185,-185,-895,-876,-783,0,0,0,0,0,0,0,0,0,0,14,14,14,14,24,0,0,0,0,-49,137,147,146,65,64,44,112,135,96,39,39,0,0,0,0,-2,0,0,0,0,0]} 1. e4 {[%emt 0:00:02]} e5 {[%emt 0:00:00]} 2. Nf3 Nc6 3. Bb5 {[%emt 0:00:03]} a6 {[%emt 0:00:01]} 4. Ba4 {[%emt 0:00:01]} Nf6 {[%emt 0:00:01]} 5. d3 {[%emt 0:00:02]} b5 {[%emt 0:00:01]} 6. Bb3 {[%emt 0:00:01]} Bc5 {[%emt 0:00:00]} 7. Nc3 {[%emt 0:00:03] 7.c3 is a critical line.} h6 {[%emt 0:00:06] C77: Ruy Lopez: 3...a6 4 Ba4 Nf6, unusual lines.} 8. Nd5 {[%emt 0:00:04]} d6 {[%emt 0:00:02]} 9. c3 {[%emt 0:00:01]} Rb8 {[%emt 0:00:03]} 10. O-O {[%emt 0:00:08]} O-O {[%emt 0:00:03]} 11. h3 {[%emt 0:00:10]} Nxd5 {[%emt 0:00:03]} 12. Bxd5 {[%emt 0:00:02]} Ne7 {[%emt 0:00:01]} 13. Bb3 {[%emt 0:00:01]} Ng6 {[%emt 0:00:05] has lost popularity (13...Bb6).} 14. d4 {[%emt 0:00:02]} Bb6 {[%emt 0:00:02]} 15. Re1 {[%emt 0:00:05]} Qf6 {[%emt 0:00:03]} 16. Be3 {[%emt 0:00:04] [#]} c5 $146 {[%emt 0:00:02]} ({Predecessor:} 16... Nf4 17. a4 Nxh3+ 18. gxh3 Bxh3 19. Kh2 Bg4 20. Kg3 Bh5 21. Rg1 c5 22. d5 Qg6+ {1-0 (51) Martirosyan,H (2616)-Sanal,V (2511) Chess.com INT 2019}) 17. dxc5 {[%emt 0:00:20]} dxc5 {[%emt 0:00:01]} 18. Bd5 {[%emt 0:00:01]} c4 {[%emt 0:00:08]} 19. b3 {[%emt 0:00:02]} Be6 {[%emt 0:00:35]} 20. Bxe6 {[%emt 0:00:32]} (20. bxc4 {keeps more tension.} bxc4 21. Rb1 Bxd5 22. Qxd5 Rfd8 23. Qxc4 Bxe3 24. fxe3 Rbc8 25. Qb3) 20... Qxe6 {[%emt 0:00:01]} 21. Bxb6 {[%emt 0:00:02]} Rxb6 {[%emt 0:00:02]} 22. Qd5 {[%emt 0:00:09]} Rc8 {[%emt 0:00:07]} (22... Qe7 $15 {feels stronger.} 23. Rad1 cxb3) 23. Qxe6 $1 $11 {[%emt 0:00:27]} Rxe6 {[%emt 0:00:01]} 24. b4 {[%emt 0:00:03]} Rd8 {[%emt 0:00:07]} 25. a4 {[%emt 0:00:03]} Rd3 {[%emt 0:00:09]} 26. axb5 {[%emt 0:00:02]} axb5 {[%emt 0:00:01]} 27. Ra5 {[%emt 0:00:10]} Nf4 {[%emt 0:01:10][%cal Of4g2]} 28. Rxb5 {[%emt 0:00:04]} Rg6 {[%emt 0:00:01]} 29. Nh4 {[%emt 0:00:02]} Nxh3+ {[%emt 0:00:19]} (29... Re6 $11 {keeps the balance.}) 30. Kf1 $1 $16 {[%emt 0:00:08]} Rg4 {[%emt 0:00:05]} 31. Nf3 {[%emt 0:00:12]} (31. gxh3 Rxh4 32. Rxe5 Rhxh3 $17) ({Better is} 31. Nf5 $1 $14 Ng5 32. Rxe5) 31... Nf4 $1 $11 {[%emt 0:00:18]} 32. Nxe5 $2 {[%emt 0:00:10][%mdl 8192]} (32. Rb8+ $11 Kh7 33. Re3 (33. Nxe5 $2 Rh4 $19)) 32... Rh4 $19 {[%emt 0:00:10][%cal Rh4h1]} 33. Kg1 {[%emt 0:00:31] [#] Prevents Rh1+.} Ne2+ {[%emt 0:00:01][%mdl 576] Discovered Attack, Double Attack} 34. Kf1 {[%emt 0:00:01]} Nxc3 $2 {[%emt 0:00:01]} (34... Rd2 {[%cal Rh4h1]} 35. g4 (35. Rb8+ $2 Kh7 $19) 35... Rh1+ 36. Kg2 Rxe1) 35. Rb8+ {[%emt 0:00:00]} Kh7 {[%emt 0:00:01][%cal Rh4h1]} 36. Kg1 {[%emt 0:00:02] [#] Inhibits Rh1+.} (36. f3 Rh1+ 37. Kf2 Nd1+ 38. Rxd1 Rdxd1 39. Nxc4) 36... Ne2+ $1 {[%emt 0:00:00][%mdl 512]} 37. Kf1 {[%emt 0:00:00]} Nc3 $2 {[%emt 0:00:01]} (37... Rd2 $19 {[%cal Rh4h1]} 38. g3 Rh1+ 39. Kg2 Rxe1 40. Nxc4 Ra2) 38. Kg1 $36 {[%emt 0:00:01][%mdl 2048] Against Rh1+. Hoping for g3. White has good play.} Rd2 {[%emt 0:00:21]} 39. Nf3 {[%emt 0:00:18]} Re2 {[%emt 0:00:03]} 40. Rxe2 {[%emt 0:00:02]} (40. Rc1 Rb2 $1 41. Nxh4 Ne2+ 42. Kf1 Nxc1 $17) 40... Nxe2+ {[%emt 0:00:01][%mdl 4096] Endgame KRN-KRN} 41. Kf1 {[%emt 0:00:01]} Rxe4 {[%emt 0:00:01]} 42. Nd2 {[%emt 0:00:02]} Re6 {[%emt 0:00:03]} 43. Nxc4 {[%emt 0:00:02]} Nf4 {[%emt 0:00:02]} 44. b5 {[%emt 0:00:02] Inhibits Rc6.} Re4 {[%emt 0:00:00]} ({Don't do} 44... Nd3 45. Ne3 $14) 45. Ne3 {[%emt 0:00:03]} Rb4 {[%emt 0:00:01] ( -> ...Rb1+)} 46. Ke1 Rb2 47. Nc4 {[%emt 0:00:06]} (47. Kd1 $11 {is more appropriate.}) 47... Re2+ $2 {[%emt 0:00:04] [#]} (47... Nxg2+ $15 48. Kd1 (48. Kf1 Rb4 $17) 48... Rb4) 48. Kd1 $1 $16 {[%emt 0:00:02] Strongly threatening g3.} ({Don't go for} 48. Kf1 $2 Rc2 49. Re8 Rxc4 $19) 48... Re4 {[%emt 0:00:04]} 49. Ne3 {[%emt 0:00:02]} (49. Rc8 $16 {b6 is the strong threat.} Nd5 50. b6 Rxc4 51. Rxc4 Nxb6 52. Rc7) 49... Rb4 $14 {[%emt 0:00:02]} 50. Kd2 {[%emt 0:00:02]} Ne6 {[%emt 0:00:03]} (50... Rb2+ $14 51. Kc3 Rxf2) 51. Kc3 $16 {[%emt 0:00:01]} Rb1 {[%emt 0:00:01]} 52. b6 {[%emt 0:00:03]} ({White should play} 52. Nc4 $16) 52... Nc5 $1 $14 {[%emt 0:00:01]} 53. Kc4 {[%emt 0:00:02]} Nd7 {[%emt 0:00:00][%csl LRb6,LRb8] The position is equal.} 54. Rb7 {[%emt 0:00:03]} Nxb6+ {[%emt 0:00:01]} 55. Kd4 {[%emt 0:00:01]} Rb2 {[%emt 0:00:03]} 56. Rxf7 {[%emt 0:00:03]} Rd2+ {[%emt 0:00:03]} 57. Kc3 {[%emt 0:00:01]} Rd7 {What a bad dream for Black.  Weighted Error Value: White=0.37/Black=0.29 (precise)} 1/2-1/2

[Event "Susha Chess Blitz 2022"]
[Site "Shusha"]
[Date "2022.09.24"]
[Round "6"]
[White "Maghsoodloo, Parham"]
[Black "Kasimdzhanov, Rustam"]
[Result "1-0"]
[ECO "D32"]
[WhiteElo "2721"]
[BlackElo "2670"]
[Annotator "TA"]
[PlyCount "79"]
[EventDate "2022.09.24"]
[EventType "tourn"]
[EventCountry "AZE"]
[SourceTitle "playchess.com"]
[Source "ChessBase"]
[SourceQuality "1"]
[TimeControl "180+2"]

{[%evp 12,79,44,41,37,26,11,0,19,15,41,44,76,54,54,59,71,68,127,102,101,91,177,168,206,208,257,166,195,128,125,124,122,122,127,127,170,170,161,174,170,175,173,167,165,147,202,199,210,207,237,236,248,234,270,255,285,283,279,311,353,342,498,493,481,453,735,734,602,606]} 1. d4 {[%emt 0:00:01]} d5 {[%emt 0:00:01]} 2. c4 e6 3. Nc3 {[%emt 0:00:02]} c5 {[%emt 0:00:00]} 4. cxd5 {[%emt 0:00:08]} exd5 {[%emt 0:00:01]} 5. Nf3 {[%emt 0:00:05]} Nf6 {[%emt 0:00:00]} 6. Bg5 {[%emt 0:00:04]} Be6 {[%emt 0:00:01]} 7. e3 {[%emt 0:00:03]} c4 {[%emt 0:00:02] D32: Tarrasch Defence: Sidelines and lines without g3.} 8. Bxf6 $5 {[%emt 0:00:05][%mdl 4] An interesting side line.} Qxf6 {[%emt 0:00:03]} 9. a3 {[%emt 0:00:01] [#]} (9. Qa4+ {keeps more tension.} Nc6 10. Bxc4 dxc4 11. d5) 9... a6 $146 {[%emt 0:00:50] The position is equal.} ({Predecessor:} 9... Nc6 10. g3 Qd8 11. Bg2 Be7 12. Ng1 O-O 13. Nge2 Bg5 14. O-O Re8 15. b3 Na5 16. bxc4 Nxc4 {0-1 (40) Martirosyan,H (2632)-Nihal,S (2620) Chess.com INT 2021}) 10. g3 {[%emt 0:00:02]} Nd7 {[%emt 0:00:30] Inhibits Ne5.} 11. Bg2 {[%emt 0:00:01]} Be7 {[%emt 0:00:08]} 12. Ng1 {[%emt 0:00:05]} Nb6 {[%emt 0:00:07]} 13. Nge2 {[%emt 0:00:06]} O-O {[%emt 0:00:04]} 14. Nf4 {[%emt 0:00:03]} Bd6 {[%emt 0:00:06]} (14... Rad8 $14) 15. Nfxd5 {[%emt 0:00:08]} ({Inferior is} 15. Bxd5 Bxf4 16. Bxe6 Bxe3 17. fxe3 fxe6 $15) 15... Nxd5 {[%emt 0:00:12]} 16. Nxd5 {[%emt 0:00:03]} Bxd5 {[%emt 0:00:24]} (16... Qd8 $16 {is a better defense.}) 17. Bxd5 $18 {[%emt 0:00:02]} Rad8 {[%emt 0:00:14][%cal Od6a3]} 18. Bxc4 {[%emt 0:00:09]} Bxa3 {[%emt 0:00:32]} 19. Qb3 {[%emt 0:00:58]} Bxb2 {[%emt 0:00:05]} 20. Ra2 {[%emt 0:00:09]} (20. Qxb2 $18 Qc6 21. O-O $1 Qxc4 22. Qxb7) 20... b5 $16 {[%emt 0:00:11]} (20... Bxd4 $2 21. exd4 b5 22. Be2 $18) 21. Be2 {[%emt 0:01:11]} ({Don't do} 21. Qxb2 bxc4 22. O-O Rb8 $14) 21... Qc6 {[%emt 0:00:01]} 22. O-O {[%emt 0:00:02][%cal Bh1f1,Bf1c1,Bc1c6][%mdl 32]} Bc3 {[%emt 0:00:01]} 23. Rc1 $36 {[%emt 0:00:03][%mdl 2048] Keeping Black busy.} Rc8 {[%emt 0:00:06] [#]} 24. Rac2 $1 {[%emt 0:00:01]} b4 {[%emt 0:00:01] [#]} 25. Qxb4 {[%emt 0:00:01][%mdl 512]} Bxb4 {[%emt 0:00:02]} 26. Rxc6 {[%emt 0:00:01]} Rxc6 {[%emt 0:00:01]} 27. Rxc6 $18 {[%emt 0:00:02][%mdl 4096] Endgame KRB-KRB} a5 {[%emt 0:00:01]} 28. Rc7 {[%emt 0:00:04]} g6 {[%emt 0:00:10] [#]} (28... Kh8 $16 29. Ra7 g6) 29. Bc4 $1 {[%emt 0:00:03]} Kg7 {[%emt 0:00:01]} 30. Ra7 {[%emt 0:00:07]} Kf6 {[%emt 0:00:03]} 31. h4 {[%emt 0:00:02]} Bc3 {[%emt 0:00:02]} 32. Kg2 {[%emt 0:00:02]} h6 {[%emt 0:00:01]} 33. Kf3 {[%emt 0:00:02]} Bb4 {[%emt 0:00:03]} 34. Ke2 {[%emt 0:00:02]} Bc3 {[%emt 0:00:00]} 35. g4 {[%emt 0:00:04]} Bb4 {[%emt 0:00:02]} 36. f4 {[%emt 0:00:01]} g5 {[%emt 0:00:01]} (36... Kg7 {was necessary.} 37. h5 gxh5 38. gxh5 Bd6) 37. fxg5+ {[%emt 0:00:02] White is clearly winning.} hxg5 {[%emt 0:00:01]} 38. h5 {[%emt 0:00:01]} Bc3 {[%emt 0:00:02]} (38... Kg7 $142 39. Kd3 Bd6 40. Rxa5 Kh8 41. Rxg5 Rg8) 39. Kd3 {[%emt 0:00:01]} Bb4 {[%emt 0:00:01]} 40. e4 {[%emt 0:00:01] Weighted Error Value: White=0.12 (very precise) /Black=0.29 (precise)} 1-0

[Event "Susha Chess Blitz 2022"]
[Site "Shusha"]
[Date "2022.09.24"]
[Round "6"]
[White "Vidit, Santosh Gujrathi"]
[Black "Radjabov, Teimour"]
[Result "1/2-1/2"]
[ECO "E10"]
[WhiteElo "2710"]
[BlackElo "2747"]
[Annotator "TA"]
[PlyCount "190"]
[EventDate "2022.09.24"]
[EventType "tourn"]
[EventCountry "AZE"]
[SourceTitle "playchess.com"]
[Source "ChessBase"]
[SourceQuality "1"]
[TimeControl "180+2"]

{[%evp 34,190,10,0,0,0,6,0,0,0,0,-26,-14,-2,-6,-7,-8,-31,-39,-84,11,2,12,12,13,17,20,19,24,37,25,20,27,19,20,20,19,0,21,13,28,-5,-8,-27,-30,-39,0,-91,19,27,118,-150,0,0,0,0,0,0,9,9,10,9,10,11,12,12,38,25,107,0,0,0,0,0,21,0,0,0,0,0,0,0,0,0,0,0,0,0,0,0,0,0,0,0,0,0,0,0,0,0,0,0,0,0,0,0,0,0,0,0,0,0,0,0,0,0,80,165,241,0,0,0,0,0,0,0,0,0,0,0,0,0,0,0,0,0,0,0,0,0,0,0,0,0,0,0,0,0,0,0,0,0,0,0,0,0,0,0,0]} 1. d4 {[%emt 0:00:01]} Nf6 {[%emt 0:00:01]} 2. c4 {[%emt 0:00:01]} e6 {[%emt 0:00:01]} 3. Nf3 {[%emt 0:00:01]} d5 {[%emt 0:00:02]} 4. e3 {[%emt 0:00:01]} Be7 {[%emt 0:00:05]} 5. b3 {[%emt 0:00:01]} c5 {[%emt 0:00:06]} 6. Bb2 {[%emt 0:00:03]} cxd4 {[%emt 0:00:02]} 7. exd4 {[%emt 0:00:01]} Nc6 {[%emt 0:00:08]} 8. Bd3 {[%emt 0:00:03]} Nb4 {[%emt 0:00:05]} 9. Be2 {[%emt 0:00:02]} b6 {[%emt 0:00:02]} 10. O-O {[%emt 0:00:03]} Bb7 {[%emt 0:00:01]} 11. Nc3 {[%emt 0:00:09]} dxc4 {[%emt 0:00:10]} 12. bxc4 {[%emt 0:00:03]} O-O {[%emt 0:00:10]} 13. Rc1 {[%emt 0:00:09]} Rc8 {[%emt 0:00:05]} 14. Ne5 {[%emt 0:00:10]} Ba8 {[%emt 0:00:35]} 15. Re1 {[%emt 0:00:15]} Nc6 {[%emt 0:00:05]} 16. Nxc6 {[%emt 0:00:02]} Bxc6 {[%emt 0:00:03]} 17. Qb3 {[%emt 0:00:03]} Ba8 {[%emt 0:01:03]} 18. Red1 {[%emt 0:00:02]} Bd6 {[%emt 0:00:05]} 19. h3 {[%emt 0:00:14]} Qd7 {[%emt 0:00:04]} 20. a4 {[%emt 0:00:06]} Rfd8 {[%emt 0:00:03]} 21. Rc2 {[%emt 0:00:17]} Qe8 {[%emt 0:00:05]} 22. Bc1 {[%emt 0:00:12]} Bb8 {[%emt 0:00:05]} 23. Bg5 {[%emt 0:00:12]} Qe7 {[%emt 0:00:06]} (23... Qc6 $2 24. Bf3 Qxc4 25. Qxc4 Rxc4 26. Bxa8 $18) 24. Bh4 {[%emt 0:00:08]} h6 {[%emt 0:00:15]} 25. Nb5 {[%emt 0:00:12]} a6 {[%emt 0:00:08]} (25... Qb7 $2 26. Bf3 Rc6 27. Bxf6 gxf6 28. Bxc6 Qxc6 29. d5 $18) 26. Nc3 {[%emt 0:00:12]} Qc7 {[%emt 0:00:01]} (26... g5 $1 $17 {[%cal Rg5h4]} 27. Bg3 Bxg3 28. fxg3 Rxd4 $1 29. Qxb6 (29. Rxd4 Qc5 $17) 29... Rxd1+ 30. Nxd1 Ne4) 27. Bg3 $11 {[%emt 0:00:04]} Qa7 {[%emt 0:00:03]} 28. Bxb8 {[%emt 0:00:06]} Rxb8 {[%emt 0:00:00]} 29. Rcd2 {[%emt 0:00:09]} Rd6 {[%emt 0:00:04]} 30. d5 {[%emt 0:00:09]} exd5 {[%emt 0:00:03]} 31. cxd5 {[%emt 0:00:05]} Rbd8 {[%emt 0:00:01]} 32. Bf3 {[%emt 0:00:06]} Qd7 {[%emt 0:00:07]} 33. Qc4 {[%emt 0:00:06]} Bb7 {[%emt 0:00:02]} 34. Qd4 {[%emt 0:00:03]} Qc7 {[%emt 0:00:01]} 35. Rd3 {[%emt 0:00:14]} Rc8 {[%emt 0:00:06]} 36. Rb1 {[%emt 0:00:14]} Qc5 {[%emt 0:00:00]} 37. Qxc5 {[%emt 0:00:07]} (37. Qf4 {with more complications.} Qc7 38. Ne4 Nxe4 39. Bxe4 Qe7 40. Re3) 37... Rxc5 {[%emt 0:00:01]} 38. Ne4 {[%emt 0:00:07]} Nxe4 {[%emt 0:00:02]} 39. Bxe4 {[%emt 0:00:01]} Rc4 {[%emt 0:00:02]} 40. Bf3 {[%emt 0:00:04]} (40. f3 $1 $11) 40... g6 {[%emt 0:00:01]} ({Black should play} 40... Rxa4 $17 {Hoping for ...Rc4.} 41. Re1 Kf8) 41. Rdb3 $11 {[%emt 0:00:03]} Bxd5 {[%emt 0:00:08]} (41... Bc8 $11 {keeps the balance.}) 42. Rd1 $2 {[%emt 0:00:01][%mdl 8192] [#]} (42. Rd3 $16 {is necessary to keep the advantage.} Rc5 43. Rb4) 42... Rc5 {[%emt 0:00:02]} ({Black should try} 42... Rc1 $1 $17 {[%cal Rc1d1][%mdl 512]} 43. Rxc1 Bxb3) 43. Bxd5 $11 {[%emt 0:00:03]} Rcxd5 {[%emt 0:00:01]} 44. Rxd5 {[%emt 0:00:01]} Rxd5 {[%emt 0:00:00]} 45. Rxb6 {[%emt 0:00:01]} a5 {[%emt 0:00:01]} 46. Rb5 {[%emt 0:00:03]} Rd1+ {[%emt 0:00:08]} 47. Kh2 Rd2 {[%emt 0:00:02]} 48. Kg3 {[%emt 0:00:02]} Rd3+ {[%emt 0:00:01]} 49. f3 {[%emt 0:00:01]} Kg7 {[%emt 0:00:01]} 50. Rxa5 {[%emt 0:00:02]} Ra3 {[%emt 0:00:01]} (50... Rd4 $11) 51. h4 {[%emt 0:00:02]} (51. Kf4 $16) 51... Ra2 $1 $11 {[%emt 0:00:02]} 52. Kh3 {[%emt 0:00:02]} h5 {[%emt 0:00:02]} 53. Ra6 {[%emt 0:00:00]} Ra1 {[%emt 0:00:03]} 54. a5 {[%emt 0:00:01]} Ra2 {[%emt 0:00:01]} 55. Kg3 {[%emt 0:00:03]} Ra4 {[%emt 0:00:02]} 56. Ra8 {[%emt 0:00:02]} Kf6 {[%emt 0:00:02]} 57. Ra7 {[%emt 0:00:01]} Ra2 {[%emt 0:00:02]} 58. Kh3 {[%emt 0:00:02]} Ra3 {[%emt 0:00:01]} 59. a6 {[%emt 0:00:01]} Ra5 {[%emt 0:00:06]} 60. Kg3 {[%emt 0:00:02]} Ra4 {[%emt 0:00:02]} 61. Ra8 {[%emt 0:00:01]} Kg7 {[%emt 0:00:01]} 62. Ra7 {[%emt 0:00:05]} Kf6 {[%emt 0:00:01]} 63. Kh3 {[%emt 0:00:02]} Ra3 {[%emt 0:00:01]} 64. Kh2 {[%emt 0:00:02]} Ra2 {[%emt 0:00:01]} 65. Ra8 {[%emt 0:00:03]} Kg7 {[%emt 0:00:04]} 66. Kg3 {[%emt 0:00:03]} Ra4 {[%emt 0:00:01]} 67. a7 {[%emt 0:00:04]} Kf6 {[%emt 0:00:04]} 68. Kf2 {[%emt 0:00:01]} Ra3 {[%emt 0:00:02]} 69. Ke2 {[%emt 0:00:02]} Kg7 {[%emt 0:00:02]} 70. Kd2 {[%emt 0:00:03]} Kf6 {[%emt 0:00:02]} 71. Kc2 {[%emt 0:00:01]} Kg7 {[%emt 0:00:01]} 72. Kb2 {[%emt 0:00:01]} Ra6 {[%emt 0:00:01]} 73. Kb3 {[%emt 0:00:01]} Ra1 {[%emt 0:00:01]} 74. Kc4 {[%emt 0:00:02]} Rc1+ {[%emt 0:00:04]} (74... Ra4+ $11 {remains equal.} 75. Kb5 Ra3) 75. Kd3 {[%emt 0:00:02]} (75. Kd4 $16 Ra1 76. Ke5) 75... Ra1 {[%emt 0:00:01]} (75... Rd1+ $142 76. Kc4 Ra1) 76. f4 $2 {[%emt 0:00:03]} (76. Kd4 $18) 76... Ra4 $11 {[%emt 0:00:04]} 77. f5 {[%emt 0:00:03]} gxf5 {[%emt 0:00:04]} 78. g3 {[%emt 0:00:04]} Kh7 {[%emt 0:00:01]} 79. Kc3 {[%emt 0:00:01]} Kg7 {[%emt 0:00:01]} 80. Kb3 {[%emt 0:00:00]} Ra1 {[%emt 0:00:01]} 81. Kc4 {[%emt 0:00:01]} Ra5 {[%emt 0:00:03]} 82. Kd4 {[%emt 0:00:01]} Kh7 {[%emt 0:00:02]} 83. Ke3 {[%emt 0:00:01]} Ra4 {[%emt 0:00:01]} 84. Kd3 {[%emt 0:00:03]} Kg7 {[%emt 0:00:01]} 85. Kc3 {[%emt 0:00:01]} Ra1 {[%emt 0:00:01]} 86. Kb4 {[%emt 0:00:01]} Rb1+ {[%emt 0:00:05]} 87. Kc5 {[%emt 0:00:00]} Ra1 {[%emt 0:00:02]} 88. Kd6 {[%emt 0:00:03]} Ra2 {[%emt 0:00:05]} 89. Kc6 {[%emt 0:00:02]} Rc2+ {[%emt 0:00:01]} 90. Kd7 {[%emt 0:00:03]} Ra2 {[%emt 0:00:01]} 91. Kd6 {[%emt 0:00:02]} Ra1 {[%emt 0:00:03]} 92. Kc6 {[%emt 0:00:05]} Rc1+ {[%emt 0:00:01]} 93. Kb6 {[%emt 0:00:04]} Rb1+ {[%emt 0:00:01]} 94. Kc6 {[%emt 0:00:01]} Ra1 {[%emt 0:00:01]} 95. Kb6 {[%emt 0:00:01]} Rb1+ $1 {[%emt 0:00:01]} 1/2-1/2